bitfinex-derivatives/quotes_SOLF0:USTF0_20250903
["timestamp","ask_amount","ask_price","bid_price","bid_amount"]
[1756924927580,7.51,209.53,209.49,7.35065666]
[1756924928983,7.51,209.53,209.5,7.32]
[1756924929391,2.00726871,209.55,209.5,7.32]
[1756924929677,7.51,209.54,209.5,7.32]
[1756924929885,2.00726871,209.55,209.5,7.32]
[1756924930581,117.68,209.56,209.49,0.03065666]
[1756924930582,7.51,209.52,209.49,0.03065666]
[1756924930979,2.00726871,209.53,209.49,0.03065666]
[1756924931180,9.51726871,209.57,209.49,9.35792537]
[1756924931883,7.51,209.57,209.5,8.0]
[1756924932487,7.51,209.57,209.51,2.00726871]
[1756924933786,9.51726871,209.57,209.51,2.00726871]
[1756924933989,9.51726871,209.57,209.5,10.00726871]
[1756924934889,2.00726871,209.57,209.5,8.0]
[1756924935080,2.00726871,209.55,209.49,0.03065666]
[1756924935283,7.33,209.54,209.49,0.03065666]
[1756924935489,2.00726871,209.55,209.49,0.03065666]
[1756924935687,9.33726871,209.55,209.49,0.03065666]
[1756924938187,2.00726871,209.53,209.49,0.03065666]
[1756924938387,7.33,209.52,209.49,0.03065666]
[1756924939194,2.00726871,209.53,209.49,0.03065666]
[1756924939392,7.33,209.52,209.49,0.03065666]
[1756924939590,2.00726871,209.53,209.49,0.03065666]
[1756924939793,7.33,209.52,209.49,0.03065666]
[1756924940293,2.00726871,209.53,209.49,0.03065666]
[1756924940888,7.33,209.52,209.49,0.03065666]
[1756924941194,2.00726871,209.53,209.49,0.03065666]
[1756924941495,7.33,209.52,209.49,8.03065666]
[1756924942798,2.00726871,209.56,209.49,0.03065666]
[1756924942996,5.29416714,209.6,209.5,8.0]
[1756924943193,7.33,209.59,209.53,2.00726871]
[1756924943700,7.33,209.6,209.54,0.03538803]
[1756924944396,2.00726871,209.59,209.54,0.03538803]
[1756924944597,2.00726871,209.57,209.54,0.03538803]
[1756924944996,9.33726871,209.55,209.54,0.03538803]
[1756924951509,7.33,209.55,209.54,0.03538803]
[1756924951710,9.33726871,209.55,209.54,0.03538803]
[1756924956412,7.33,209.55,209.54,0.03538803]
[1756924956712,9.33726871,209.55,209.54,0.03538803]
[1756924957112,82.92,209.57,209.54,0.03538803]
[1756924957113,7.33,209.56,209.54,0.03538803]
[1756924957513,2.00726871,209.57,209.54,0.03538803]
[1756924978395,117.64,209.56,209.54,0.03538803]
[1756925782358,18.42080619,209.65,209.54,0.03538803]
[1756925827498,320.98,209.55,209.54,0.03538803]
[1756925827805,320.98,209.55,209.54,0.03538803]
[1756925830707,124.76,209.56,209.54,0.03538803]
[1756925831009,7.88,209.56,209.54,0.03538803]
[1756925847321,7.55,209.59,209.54,0.03538803]
[1756925847519,7.55,209.63,209.54,3.1325726]
[1756925847822,7.55,209.63,209.55,7.66]
[1756925848021,7.55,209.63,209.56,0.03586737]
[1756925851819,7.55,209.63,209.57,7.66]
[1756925864639,7.55,209.63,209.56,0.03586737]
[1756925870945,7.94,209.61,209.56,0.03586737]
[1756925871846,7.94,209.59,209.56,0.03586737]
[1756925872438,7.94,209.6,209.56,0.03586737]
[1756925874650,3.1325726,209.61,209.56,0.03586737]
[1756925875250,7.94,209.6,209.56,0.03586737]
[1756925889556,9.9440993,209.57,209.56,0.03586737]
[1756925893655,7.52,209.64,209.57,7.56]
[1756925893955,7.52,209.64,209.58,9.5640993]
[1756925894455,7.52,209.64,209.58,9.59700491]
[1756925895253,7.52,209.62,209.58,7.59290561]
[1756925895459,2.0040993,209.61,209.58,0.03290561]
[1756925895661,9.5240993,209.59,209.58,0.03290561]
[1756925900365,7.52,209.59,209.58,0.03290561]
[1756925902164,7.52,209.64,209.58,0.03290561]
[1756925902361,7.52,209.64,209.58,7.59290561]
[1756925908872,124.14,209.64,209.58,7.59290561]
[1756925910172,7.52,209.64,209.58,7.59290561]
[1756925910473,7.52,209.63,209.6,7.56]
[1756925911173,320.76,209.67,209.61,9.5640993]
[1756925911480,124.14,209.66,209.62,7.56]
[1756925911668,116.62,209.66,209.62,7.56]
[1756925911869,7.52,209.65,209.62,7.56]
[1756925912071,7.52,209.65,209.62,7.59585188]
[1756925912271,7.52,209.65,209.62,9.59995118]
[1756925916275,124.12,209.65,209.62,9.59995118]
[1756925917271,116.6,209.65,209.62,0.03585188]
[1756925917776,7.52,209.64,209.62,0.03585188]
[1756925917977,116.6,209.65,209.62,0.03585188]
[1756925918376,7.52,209.64,209.62,0.03585188]
[1756925918571,116.6,209.65,209.62,0.03585188]
[1756925918876,7.52,209.64,209.62,0.03585188]
[1756925919177,116.6,209.65,209.62,0.03585188]
[1756925919978,7.52,209.64,209.62,0.03585188]
[1756925920772,116.6,209.65,209.62,0.03585188]
[1756925921576,7.52,209.64,209.62,0.03585188]
[1756925921778,7.35,209.64,209.62,0.03585188]
[1756925921974,116.6,209.65,209.62,0.03585188]
[1756925922169,7.35,209.64,209.62,0.03585188]
[1756925922377,116.6,209.65,209.62,0.03585188]
[1756925922774,7.35,209.64,209.62,0.03585188]
[1756925923378,116.6,209.65,209.62,0.03585188]
[1756925923579,7.35,209.64,209.62,0.03585188]
[1756925924580,116.6,209.65,209.62,0.03585188]
[1756925924778,116.58,209.64,209.62,0.03585188]
[1756925924981,7.35,209.63,209.62,0.03585188]
[1756925931483,9.3540993,209.63,209.62,0.03585188]
[1756925933987,125.9340993,209.63,209.62,0.03585188]
[1756925934685,123.93,209.63,209.62,0.03585188]
[1756925935785,7.35,209.63,209.62,0.03585188]
[1756925936187,33.37,209.63,209.62,0.03585188]
[1756925937090,58.13,209.63,209.62,0.03585188]
[1756925941188,7.35,209.63,209.62,0.03585188]
[1756925941784,7.35,209.65,209.62,0.03585188]
[1756925941986,24.1,209.66,209.62,7.92585188]
[1756925942286,2.0040993,209.68,209.62,7.92585188]
[1756925942490,7.35,209.66,209.62,7.92585188]
[1756925942690,49.8,209.67,209.62,7.92585188]
[1756925942990,7.35,209.66,209.62,7.92585188]
[1756925943489,49.8,209.67,209.62,7.92585188]
[1756925943694,7.35,209.66,209.62,7.92585188]
[1756925944692,49.8,209.67,209.62,0.03585188]
[1756925945290,7.35,209.66,209.62,0.03585188]
[1756925945792,9.3540993,209.66,209.62,0.03585188]
[1756925945983,7.35,209.66,209.62,0.03585188]
[1756925946386,80.82,209.67,209.62,0.03585188]
[1756925946592,7.35,209.66,209.62,0.03585188]
[1756925946994,80.82,209.67,209.62,0.03585188]
[1756925947196,7.35,209.66,209.62,0.03585188]
[1756925947592,80.82,209.67,209.62,0.03585188]
[1756925947793,7.35,209.66,209.62,0.03585188]
[1756925948296,118.5640993,209.67,209.62,0.03585188]
[1756925948598,7.35,209.66,209.62,0.03585188]
[1756925948988,116.54,209.67,209.62,9.92995118]
[1756925949193,7.35,209.66,209.63,7.89]
[1756925950097,116.54,209.67,209.63,7.89]
[1756925950598,116.54,209.67,209.62,7.92585188]
[1756925951296,7.35,209.66,209.62,7.92585188]
[1756925951496,116.54,209.67,209.62,7.92585188]
[1756925951792,7.34,209.66,209.62,7.92585188]
[1756925952192,116.54,209.67,209.62,7.92585188]
[1756925952399,7.34,209.66,209.62,7.92585188]
[1756925952598,116.54,209.67,209.62,7.92585188]
[1756925953194,7.34,209.66,209.62,7.92585188]
[1756925953394,116.54,209.67,209.62,7.92585188]
[1756925954890,7.34,209.7,209.63,7.26]
[1756925955696,7.34,209.7,209.64,0.03667444]
[1756925956495,7.34,209.7,209.65,7.26]
[1756925956895,7.34,209.71,209.64,7.29667444]
[1756925958193,123.86,209.74,209.66,7.26]
[1756925958497,7.34,209.74,209.68,7.26]
[1756925959096,7.34,209.74,209.69,0.03195656]
[1756925959298,7.34,209.78,209.69,0.03195656]
[1756925962605,123.84,209.78,209.7,7.26]
[1756925963204,123.84,209.78,209.69,0.03195656]
[1756925965106,123.84,209.78,209.69,7.29195656]
[1756925979531,7.34,209.78,209.69,7.29195656]
[1756925979925,28.88,209.78,209.69,7.29195656]
[1756925980432,7.34,209.78,209.69,7.29195656]
[1756925980729,28.9,209.78,209.69,7.29195656]
[1756925983331,7.34,209.78,209.69,7.29195656]
[1756925983530,7.34,209.78,209.69,0.03195656]
[1756925985638,7.34,209.78,209.7,7.45]
[1756926000233,7.34,209.78,209.69,0.03195656]
[1756926000439,10.46758083,209.78,209.69,0.03195656]
[1756926000641,3.12758083,209.75,209.69,0.03195656]
[1756926000939,7.86,209.71,209.69,0.03195656]
[1756926004345,3.12758083,209.7,209.69,0.03195656]
[1756926004645,10.98758083,209.7,209.69,0.03195656]
[1756926005150,10.98758083,209.7,209.57,7.45]
[1756926006447,0.03040202,209.66,209.57,7.45]
[1756926006651,7.86,209.65,209.57,7.45]
[1756926006847,3.12758083,209.64,209.57,7.45]
[1756926007046,7.86,209.63,209.57,7.45]
[1756926007247,7.86,209.63,209.49,5.3326929]
[1756926007248,7.86,209.63,209.5,7.45]
[1756926008256,0.03326879,209.59,209.5,7.45]
[1756926011453,0.03326879,209.59,209.53,2.00331299]
[1756926011651,0.03326879,209.59,209.54,7.45]
[1756926011848,0.03326879,209.59,209.54,7.27]
[1756926012148,0.03326879,209.59,209.53,2.00331299]
[1756926012653,7.83,209.58,209.54,7.27]
[1756926013047,7.83,209.58,209.53,2.00331299]
[1756926013346,7.83,209.58,209.54,7.27]
[1756926013551,7.83,209.58,209.53,2.00331299]
[1756926013752,7.83,209.58,209.52,2.00331299]
[1756926013952,7.83,209.58,209.52,9.27331299]
[1756926014352,0.03434151,209.57,209.52,2.00331299]
[1756926015150,0.03434151,209.57,209.53,7.27]
[1756926015350,7.86434151,209.57,209.52,2.00331299]
[1756926015855,7.86434151,209.57,209.53,7.27]
[1756926016054,7.86434151,209.57,209.52,2.00331299]
[1756926016753,7.86434151,209.57,209.46,7.27]
[1756926016948,7.86434151,209.57,209.52,2.00331299]
[1756926017150,0.03434151,209.57,209.56,9.27331299]
[1756926017551,7.83,209.63,209.56,9.27331299]
[1756926017751,0.03200594,209.59,209.56,2.00331299]
[1756926017952,0.03200594,209.59,209.57,7.27]
[1756926018156,0.03200594,209.59,209.56,2.00331299]
[1756926018549,0.03200594,209.59,209.57,7.27]
[1756926019256,0.03200594,209.59,209.56,2.00331299]
[1756926019658,0.03200594,209.59,209.58,9.27331299]
[1756926020859,0.03200594,209.59,209.58,7.27]
[1756926021060,7.86200594,209.59,209.56,7.27]
[1756926022457,7.83,209.58,209.54,2.00331299]
[1756926022657,7.83,209.58,209.55,7.27]
[1756926023154,0.03200594,209.59,209.55,7.27]
[1756926023459,7.86200594,209.59,209.55,7.27]
[1756926023659,7.86200594,209.59,209.54,2.00331299]
[1756926024258,7.86200594,209.59,209.55,7.27]
[1756926024454,7.86200594,209.59,209.54,2.00331299]
[1756926024656,7.86200594,209.59,209.55,7.27]
[1756926025662,7.86200594,209.59,209.54,2.00331299]
[1756926026461,7.86200594,209.59,209.55,7.27]
[1756926026655,7.83,209.58,209.55,7.27]
[1756926028657,0.03200594,209.59,209.54,2.00331299]
[1756926028859,7.86200594,209.59,209.54,2.00331299]
[1756926029060,0.03200594,209.59,209.58,9.27331299]
[1756926029763,0.03200594,209.59,209.58,7.27]
[1756926029954,0.03200594,209.59,209.58,9.27331299]
[1756926033967,7.86200594,209.59,209.56,7.27]
[1756926034258,0.03200594,209.59,209.54,2.00331299]
[1756926034459,7.86200594,209.59,209.54,2.00331299]
[1756926034860,7.86200594,209.59,209.55,7.27]
[1756926035364,7.83,209.58,209.55,7.27]
[1756926035558,7.86200594,209.59,209.53,2.00331299]
[1756926035958,7.86200594,209.59,209.53,9.27331299]
[1756926037865,9.86531893,209.59,209.53,7.27]
[1756926041470,7.86200594,209.59,209.53,7.27]
[1756926041673,9.86531893,209.59,209.53,7.27]
[1756926044469,7.24,209.56,209.5,83.04655875]
[1756926044872,2.00331299,209.55,209.5,75.76655875]
[1756926045071,7.24,209.54,209.51,7.28]
[1756926045969,2.03378811,209.55,209.51,7.28]
[1756926046274,9.24331299,209.53,209.46,7.28]
[1756926046474,7.24,209.53,209.46,7.28]
[1756926046775,2.00331299,209.51,209.46,7.28]
[1756926047073,7.24,209.5,209.44,2.00331299]
[1756926047370,7.24,209.51,209.45,2.00331299]
[1756926047576,7.24,209.51,209.45,9.28331299]
[1756926047776,7.24,209.51,209.45,7.28]
[1756926048473,2.03617685,209.5,209.45,7.28]
[1756926048673,7.24,209.47,209.4,7.28]
[1756926048875,2.00331299,209.46,209.4,7.28]
[1756926049276,0.03152052,209.45,209.39,75.16988322]
[1756926049478,0.03152052,209.45,209.39,82.44988322]
[1756926050977,0.03152052,209.45,209.39,75.16988322]
[1756926051174,0.03152052,209.45,209.4,7.28]
[1756926051380,0.03152052,209.45,209.39,75.16988322]
[1756926051580,0.03152052,209.45,209.4,7.28]
[1756926051881,0.03152052,209.45,209.39,75.16988322]
[1756926052181,0.03152052,209.45,209.39,82.44988322]
[1756926052376,7.24,209.44,209.4,7.31546026]
[1756926052878,7.24,209.44,209.41,7.28]
[1756926054779,7.24,209.44,209.4,7.31546026]
[1756926055876,2.03483351,209.45,209.4,7.31546026]
[1756926056081,7.24,209.44,209.4,7.31546026]
[1756926056483,7.24,209.44,209.41,7.28]
[1756926058281,7.24,209.44,209.4,0.03546026]
[1756926058482,7.24,209.44,209.41,7.28]
[1756926058876,2.03483351,209.45,209.4,7.31546026]
[1756926059182,7.24,209.44,209.4,7.31546026]
[1756926059579,9.24331299,209.41,209.4,0.03546026]
[1756926063277,9.72331299,209.41,209.4,0.03546026]
[1756926064782,7.72,209.41,209.4,0.03546026]
[1756926065079,9.24331299,209.43,209.4,0.03546026]
[1756926065281,2.00331299,209.43,209.4,0.03546026]
[1756926065487,7.24,209.42,209.4,0.03546026]
[1756926067784,7.24,209.43,209.4,0.03546026]
[1756926067984,2.00331299,209.44,209.4,0.03546026]
[1756926068184,7.24,209.43,209.4,0.03546026]
[1756926068786,2.00331299,209.44,209.4,0.03546026]
[1756926068985,7.24,209.43,209.4,0.03546026]
[1756926069187,2.00331299,209.44,209.4,0.03546026]
[1756926069392,2.00331299,209.42,209.4,0.03546026]
[1756926069588,7.24,209.41,209.4,0.03546026]
[1756926071595,10.37671792,209.41,209.4,0.03546026]
[1756926077794,7.24,209.41,209.4,0.03546026]
[1756926079896,7.78,209.44,209.41,7.76]
[1756926081698,7.78,209.44,209.4,0.03546026]
[1756926082191,7.81152052,209.45,209.41,7.76]
[1756926082594,7.78,209.44,209.41,7.76]
[1756926083696,7.78,209.44,209.4,0.03546026]
[1756926083897,7.78,209.44,209.41,7.76]
[1756926084393,0.03152052,209.45,209.41,7.76]
[1756926084991,7.81152052,209.45,209.41,7.76]
[1756926085392,7.81152052,209.45,209.4,3.17217818]
[1756926085393,7.81152052,209.45,209.4,0.03546026]
[1756926085589,0.03152052,209.45,209.4,0.03546026]
[1756926085794,0.03152052,209.45,209.41,7.76]
[1756926086191,0.03152052,209.45,209.4,0.03546026]
[1756926086497,0.03152052,209.45,209.41,7.76]
[1756926087491,0.03152052,209.45,209.4,0.03546026]
[1756926087691,7.78,209.44,209.41,7.76]
[1756926088089,0.03152052,209.45,209.4,0.03546026]
[1756926088289,0.03152052,209.45,209.41,7.76]
[1756926088494,0.03152052,209.45,209.4,0.03546026]
[1756926088700,0.03152052,209.45,209.41,7.76]
[1756926088899,0.03152052,209.45,209.4,0.03546026]
[1756926089199,0.03152052,209.45,209.41,7.76]
[1756926089597,0.03152052,209.45,209.44,7.76]
[1756926091494,10.52617496,209.63,209.44,7.76]
[1756926091495,13.04308748,209.56,209.44,8.24]
[1756926091699,7.78,209.56,209.47,3.13671792]
[1756926091894,7.78,209.56,209.48,7.76]
[1756926092798,7.78,209.56,209.5,0.03576455]
[1756926097803,5.26308748,209.61,209.51,7.76]
[1756926097995,68.46,209.61,209.51,7.76]
[1756926098905,7.78,209.61,209.54,7.76]
[1756926099701,7.78,209.61,209.55,0.03312139]
[1756926104204,10.91671792,209.61,209.55,0.03312139]
[1756926104703,7.78,209.61,209.55,0.03312139]
[1756926106904,7.78,209.61,209.56,3.13671792]
[1756926107110,7.41,209.68,209.59,3.13671792]
[1756926107310,7.41,209.68,209.6,7.87]
[1756926107812,7.41,209.68,209.62,0.03352361]
[1756926109708,7.41,209.68,209.63,10.14]
[1756926111209,7.41,209.67,209.63,10.14]
[1756926111409,116.94,209.68,209.63,10.14]
[1756926111610,7.41,209.67,209.63,10.14]
[1756926111907,7.41,209.68,209.63,10.14]
[1756926112113,7.41,209.66,209.63,10.14]
[1756926112514,116.92,209.67,209.63,10.14]
[1756926113413,7.41,209.66,209.63,10.14]
[1756926113716,116.92,209.67,209.63,10.14]
[1756926114011,320.88,209.69,209.63,10.14]
[1756926114209,437.76,209.69,209.63,10.14]
[1756926114410,116.88,209.69,209.63,10.14]
[1756926115315,7.41,209.7,209.63,10.14]
[1756926115516,124.29,209.7,209.63,10.14]
[1756926115715,7.41,209.69,209.63,10.14]
[1756926117416,116.88,209.7,209.63,10.14]
[1756926117614,7.41,209.69,209.63,10.14]
[1756926120717,320.7,209.81,209.66,7.87]
[1756926120718,100.63,209.75,209.66,7.87]
[1756926121317,7.41,209.75,209.68,0.03176173]
[1756926122109,7.41,209.75,209.68,11.03847965]
[1756926127122,7.41,209.75,209.68,7.90176173]
[1756926127320,7.41,209.75,209.68,11.03847965]
[1756926127821,7.41,209.75,209.69,8.2]
[1756926130523,7.41,209.77,209.69,16.07]
[1756926131022,116.96,209.78,209.69,16.07]
[1756926131724,7.84,209.77,209.69,16.07]
[1756926133423,7.84,209.77,209.71,1.99994987]
[1756926135323,7.84,209.77,209.7,1.99994987]
[1756926137922,1.99994987,209.74,209.69,8.2]
[1756926138128,1.99994987,209.72,209.69,8.2]
[1756926139418,1.99994987,209.74,209.69,8.2]
[1756926140229,7.84,209.73,209.69,8.2]
[1756926140619,23.72,209.74,209.69,8.2]
[1756926140821,7.84,209.73,209.69,8.2]
[1756926141527,25.71994987,209.74,209.69,8.2]
[1756926142130,48.17994987,209.74,209.69,8.2]
[1756926142830,7.84,209.73,209.69,8.2]
[1756926143225,48.17994987,209.74,209.69,8.2]
[1756926144127,7.84,209.73,209.69,8.2]
[1756926144529,1.99994987,209.72,209.69,8.2]
[1756926144728,7.84,209.71,209.69,8.2]
[1756926145132,1.99994987,209.72,209.69,8.2]
[1756926145330,7.84,209.71,209.69,8.2]
[1756926145530,1.99994987,209.72,209.69,8.2]
[1756926145726,7.84,209.71,209.69,8.2]
[1756926146629,7.84,209.71,209.68,0.03176173]
[1756926147030,1.99994987,209.72,209.68,0.03176173]
[1756926147335,7.84,209.71,209.68,0.03176173]
[1756926148634,1.99994987,209.72,209.68,0.03176173]
[1756926148829,7.84,209.71,209.68,0.03176173]
[1756926149237,7.84,209.71,209.68,13.40176173]
[1756926150535,7.84,209.71,209.68,20.95176173]
[1756926150932,7.84,209.72,209.68,20.95176173]
[1756926151132,7.84,209.72,209.68,13.40176173]
[1756926151530,1.99994987,209.73,209.68,13.40176173]
[1756926151731,1.99994987,209.71,209.68,13.40176173]
[1756926151935,7.84,209.7,209.68,13.40176173]
[1756926152238,1.99994987,209.71,209.68,13.40176173]
[1756926153940,7.84,209.7,209.68,13.40176173]
[1756926154133,1.99994987,209.71,209.68,13.40176173]
[1756926154439,7.84,209.7,209.68,13.40176173]
[1756926154939,1.99994987,209.71,209.68,13.40176173]
[1756926155132,7.84,209.7,209.68,13.40176173]
[1756926155533,9.83994987,209.74,209.68,13.40176173]
[1756926157541,1.99994987,209.72,209.68,13.40176173]
[1756926158138,7.84,209.71,209.68,13.40176173]
[1756926158338,7.84,209.69,209.68,13.40176173]
[1756926158940,1.99994987,209.71,209.69,7.55]
[1756926159129,7.84,209.74,209.68,13.40176173]
[1756926159130,9.83994987,209.73,209.68,13.40176173]
[1756926159334,7.84,209.73,209.69,7.55]
[1756926159538,1.99994987,209.74,209.68,13.40176173]
[1756926159734,1.99994987,209.74,209.69,7.55]
[1756926160439,1.99994987,209.74,209.68,13.40176173]
[1756926160440,1.99994987,209.74,209.7,7.55]
[1756926161536,9.83994987,209.74,209.7,7.55]
[1756926161740,9.83994987,209.74,209.69,7.83]
[1756926162040,9.83994987,209.74,209.68,13.40176173]
[1756926162341,9.83994987,209.74,209.69,7.83]
[1756926163041,9.83994987,209.74,209.68,13.40176173]
[1756926163244,9.83994987,209.74,209.7,7.83]
[1756926163438,5.26308748,209.76,209.68,15.4017116]
[1756926163638,7.31,209.78,209.71,7.83]
[1756926164343,7.31,209.78,209.73,7.83]
[1756926164543,7.26303735,209.79,209.73,7.83]
[1756926164739,5.26308748,209.8,209.73,7.83]
[1756926165739,7.26303735,209.8,209.73,7.83]
[1756926167242,1.99994987,209.8,209.73,7.83]
[1756926167437,5.26308748,209.79,209.73,7.83]
[1756926168243,5.26308748,209.8,209.76,1.99994987]
[1756926168553,1.99994987,209.84,209.76,9.82994987]
[1756926169050,9.30994987,209.84,209.76,7.83]
[1756926169253,9.30994987,209.84,209.78,0.0348388]
[1756926169553,7.31,209.81,209.78,0.0348388]
[1756926170152,7.31,209.81,209.78,7.8648388]
[1756926170348,1.99994987,209.84,209.78,0.0348388]
[1756926170554,9.30994987,209.86,209.79,7.83]
[1756926170752,5.26308748,209.87,209.78,2.03478867]
[1756926170753,5.26308748,209.87,209.81,7.83]
[1756926171051,30.29,209.87,209.83,7.83]
[1756926171650,30.29,209.87,209.83,7.86311117]
[1756926172450,22.98,209.87,209.84,7.83]
[1756926172648,22.98,209.87,209.83,0.03311117]
[1756926172954,22.98,209.87,209.84,7.83]
[1756926173355,7.31,209.87,209.84,7.83]
[1756926175354,9.30994987,209.9,209.84,7.83]
[1756926175553,7.31,209.87,209.83,0.03311117]
[1756926175756,1.99994987,209.9,209.84,7.83]
[1756926175957,9.30994987,209.9,209.83,0.03311117]
[1756926177157,7.31,209.9,209.84,7.83]
[1756926177760,7.31,209.9,209.84,9.82994987]
[1756926180059,7.31,209.9,209.86,7.83]
[1756926181160,1.99994987,209.91,209.86,7.83]
[1756926181355,36.86,209.92,209.85,11.44]
[1756926181563,36.86,209.92,209.86,7.83]
[1756926182260,7.31,209.91,209.86,7.83]
[1756926182660,7.31,209.91,209.85,11.44]
[1756926182661,9.30994987,209.91,209.85,11.44]
[1756926183060,7.31,209.91,209.85,11.44]
[1756926183261,9.30994987,209.91,209.85,11.44]
[1756926183462,7.31,209.91,209.85,11.44]
[1756926184866,9.30994987,209.91,209.85,11.44]
[1756926185561,7.31,209.91,209.86,7.83]
[1756926185766,7.31,209.93,209.87,1.99994987]
[1756926185966,1.99994987,209.92,209.85,11.44]
[1756926186167,7.31,209.91,209.85,11.44]
[1756926186361,7.31,209.91,209.86,0.03648032]
[1756926187061,1.99994987,209.92,209.86,0.03648032]
[1756926187260,7.31,209.91,209.86,0.03648032]
[1756926187460,1.99994987,209.92,209.86,0.03648032]
[1756926187764,7.31,209.91,209.86,0.03648032]
[1756926188167,1.99994987,209.92,209.86,0.03648032]
[1756926188168,27.16,209.95,209.86,0.03648032]
[1756926188360,1.99994987,209.92,209.86,0.03648032]
[1756926189166,7.31,209.97,209.86,0.03648032]
[1756926189467,1.99994987,209.91,209.86,0.03648032]
[1756926189868,7.31,209.9,209.85,11.44]
[1756926190064,1.99994987,209.91,209.86,0.03241791]
[1756926191368,7.31,209.9,209.86,0.03241791]
[1756926191568,1.99994987,209.91,209.86,0.03241791]
[1756926191768,7.33,209.9,209.86,0.03241791]
[1756926191968,1.99994987,209.91,209.86,0.03241791]
[1756926193070,7.33,209.9,209.86,0.03241791]
[1756926193663,1.99994987,209.91,209.86,0.03241791]
[1756926193871,7.33,209.9,209.86,0.03241791]
[1756926194072,1.99994987,209.91,209.86,0.03241791]
[1756926194266,328.41463122,210.01,209.86,0.03241791]
[1756926194267,7.33,209.94,209.87,9.30994987]
[1756926194468,7.33,209.94,209.87,7.31]
[1756926194671,1.99994987,209.93,209.85,11.44]
[1756926194871,7.33,209.92,209.88,0.03340942]
[1756926195572,7.33,209.95,209.88,0.03340942]
[1756926196768,7.33,209.95,209.89,7.31]
[1756926198072,7.33,209.95,209.88,0.03340942]
[1756926198870,7.33,209.95,209.88,7.34340942]
[1756926210078,7.33,209.99,209.88,7.34340942]
[1756926210873,7.33,209.99,209.9,3.12090395]
[1756926211078,7.33,209.99,209.91,7.31]
[1756926211583,7.33,209.99,209.93,0.03456146]
[1756926212378,7.33,209.99,209.94,10.11]
[1756926212582,7.33,210.0,209.94,10.11]
[1756926213776,7.33,210.0,209.94,17.42]
[1756926215284,437.66,210.01,209.94,10.11]
[1756926215484,7.33,210.0,209.94,10.11]
[1756926216987,7.33,209.99,209.94,10.11]
[1756926217183,3.12090395,210.0,209.94,10.11]
[1756926217385,7.33,209.99,209.94,10.11]
[1756926217683,8.38399143,210.0,209.94,10.11]
[1756926217888,7.33,209.99,209.94,10.11]
[1756926218084,8.38399143,210.0,209.94,10.11]
[1756926218382,7.33,209.99,209.94,10.11]
[1756926218589,8.38399143,210.0,209.94,10.11]
[1756926218782,7.33,209.99,209.94,10.11]
[1756926218981,8.38399143,210.0,209.94,10.11]
[1756926219177,7.33,209.99,209.94,10.11]
[1756926220681,8.38399143,210.0,209.94,10.11]
[1756926220878,7.33,209.99,209.94,10.11]
[1756926221280,3.12090395,209.97,209.94,10.11]
[1756926221589,7.33,209.95,209.94,10.11]
[1756926222181,116.98,209.96,209.94,10.11]
[1756926222387,7.78,209.95,209.84,7.31]
[1756926222582,7.78,209.91,209.84,7.31]
[1756926222789,117.04,209.9,209.84,7.31]
[1756926223485,0.035332,209.89,209.84,7.31]
[1756926223789,0.035332,209.89,209.79,7.31]
[1756926224397,10.93623595,209.89,209.79,7.31]
[1756926226100,10.93623595,209.89,209.8,13.42]
[1756926226293,3.15623595,209.89,209.8,13.42]
[1756926226494,7.78,209.88,209.8,13.42]
[1756926234908,7.78,209.88,209.81,7.31]